[Event "16th Deltalift Open 2019"]
[Site "Halmstad"]
[Date "2019.05.30"]
[Round "4.12"]
[White "Lindgren, Fredrik"]
[Black "Wahlund, Max"]
[Result "1-0"]
[ECO "A48"]
[WhiteElo "2278"]
[BlackElo "2088"]
[Annotator "ChessBase"]
[PlyCount "71"]
[EventDate "2019.05.30"]
[EventType "swiss"]
[EventCountry "SWE"]
[SourceTitle "playchess.com"]
[Source "ChessBase"]
[SourceQuality "1"]
[TimeControl "1800+12"]

1. d4 {[%emt 0:00:00]} Nf6 {[%emt 0:00:00]} 2. Nf3 {[%emt 0:00:00]} g6 {[%emt 0:00:00]} 3. c4 {[%emt 0:00:00]} Bg7 {[%emt 0:00:00]} 4. Nc3 {[%emt 0:00:00]} c5 {[%emt 0:00:23]} 5. d5 {[%emt 0:00:21]} O-O {[%emt 0:00:15]} 6. h3 {[%emt 0:00:28]} d6 {[%emt 0:00:17]} 7. Bf4 {[%emt 0:00:05]} a6 {[%emt 0:00:55]} 8. a4 {[%emt 0:00:09]} Qa5 {[%emt 0:02:07]} 9. Bd2 {[%emt 0:02:31]} Qc7 {[%emt 0:00:20]} 10. e4 {[%emt 0:01:03]} e6 {[%emt 0:01:00]} 11. dxe6 {[%emt 0:01:33]} Bxe6 {[%emt 0:00:51]} 12. Bd3 {[%emt 0:00:46]} Nc6 {[%emt 0:00:28]} 13. O-O {[%emt 0:00:30]} Nb4 {[%emt 0:01:40]} 14. Bf4 {[%emt 0:01:37]} Nh5 {[%emt 0:01:00]} 15. Bh2 {[%emt 0:00:08]} Bh6 {[%emt 0:00:10]} 16. Ne2 {[%emt 0:01:26]} Qd7 {[%emt 0:01:16]} 17. Ra3 {[%emt 0:01:32]} g5 {[%emt 0:04:23]} 18. Kh1 {[%emt 0:01:43]} Nf4 {[%emt 0:00:24]} 19. Nxf4 {[%emt 0:00:51]} gxf4 {[%emt 0:00:02]} 20. Qc1 {[%emt 0:00:03]} Qe7 {[%emt 0:01:08]} 21. g4 {[%emt 0:05:35]} fxg3 {[%emt 0:03:46]} 22. Qxh6 {[%emt 0:00:17]} Nxd3 {[%emt 0:00:05]} 23. Rxd3 {[%emt 0:02:57]} gxh2 {[%emt 0:00:06]} 24. Ng5 {[%emt 0:02:37]} f6 {[%emt 0:00:19]} 25. Nxe6 {[%emt 0:00:08]} Qxe6 {[%emt 0:00:03]} 26. Rg3+ {[%emt 0:00:21]} Kf7 {[%emt 0:00:05]} 27. Qxh7+ {[%emt 0:00:24]} Ke8 {[%emt 0:00:03]} 28. Qxb7 {[%emt 0:00:21]} Rd8 {[%emt 0:00:24]} 29. Kxh2 {[%emt 0:01:33]} Qxc4 {[%emt 0:00:20]} 30. Qc6+ {[%emt 0:00:14]} Kf7 {[%emt 0:00:21]} 31. Rfg1 {[%emt 0:00:44]} Ke6 {[%emt 0:02:06]} 32. f4 {[%emt 0:01:50]} Rh8 {[%emt 0:00:32]} 33. R1g2 {[%emt 0:00:26]} Qd4 {[%emt 0:00:36]} 34. Qb7 {[%emt 0:00:24]} Rhe8 {[%emt 0:01:39]} 35. Rg7 {[%emt 0:00:50]} Rb8 {[%emt 0:00:01]} 36. Qf7# {Kd5} 1-0

[Event "16th Deltalift Open 2019"]
[Site "Halmstad"]
[Date "2019.05.30"]
[Round "4.13"]
[White "Hautajarvi, Jukka"]
[Black "Silseth, Simon"]
[Result "1/2-1/2"]
[ECO "C50"]
[WhiteElo "2068"]
[BlackElo "2268"]
[Annotator "ChessBase"]
[PlyCount "80"]
[EventDate "2019.05.30"]
[EventType "swiss"]
[EventCountry "SWE"]
[SourceTitle "playchess.com"]
[Source "ChessBase"]
[SourceQuality "1"]
[TimeControl "1800+12"]

1. e4 {[%emt 0:00:00]} e5 {[%emt 0:00:08]} 2. Nf3 {[%emt 0:00:00]} Nc6 {[%emt 0:00:02]} 3. Bc4 {[%emt 0:00:20]} Be7 {[%emt 0:00:28]} 4. Nc3 {[%emt 0:00:04]} Nf6 {[%emt 0:00:09]} 5. d3 {[%emt 0:00:02]} d6 {[%emt 0:00:04]} 6. h3 {[%emt 0:00:04]} O-O {[%emt 0:00:21]} 7. Bg5 {[%emt 0:00:38]} Be6 {[%emt 0:00:12]} 8. Bb3 {[%emt 0:00:48]} Nd4 {[%emt 0:01:02]} 9. Nxd4 {[%emt 0:01:12]} exd4 {[%emt 0:00:03]} 10. Ne2 {[%emt 0:00:02]} Bxb3 {[%emt 0:04:30]} 11. axb3 {[%emt 0:00:03]} d5 {[%emt 0:00:22]} 12. e5 {[%emt 0:02:48]} Nd7 {[%emt 0:00:20]} 13. Bf4 {[%emt 0:00:02]} c5 {[%emt 0:00:24]} 14. O-O {[%emt 0:00:05]} Re8 {[%emt 0:00:49]} 15. Re1 {[%emt 0:03:14]} Nb8 {[%emt 0:01:59]} 16. Ng3 {[%emt 0:00:20]} Qd7 {[%emt 0:01:10]} 17. Qg4 {[%emt 0:02:32]} Qxg4 {[%emt 0:00:35]} 18. hxg4 {[%emt 0:00:02]} Nc6 {[%emt 0:02:00]} 19. Bd2 {[%emt 0:00:36]} Bd8 {[%emt 0:01:48]} 20. f4 {[%emt 0:00:54]} a5 {[%emt 0:05:14]} 21. Nf5 {[%emt 0:00:16]} Bc7 {[%emt 0:00:04]} 22. Kf2 {[%emt 0:00:45]} Nb4 {[%emt 0:00:56]} 23. Bxb4 {[%emt 0:00:20]} cxb4 {[%emt 0:00:59]} 24. Kf3 {[%emt 0:00:04]} Bb6 {[%emt 0:00:17]} 25. Re2 {[%emt 0:02:33]} Re6 {[%emt 0:00:36]} 26. Nd6 {[%emt 0:00:51]} f6 {[%emt 0:02:33]} 27. Rae1 {[%emt 0:06:29]} fxe5 {[%emt 0:00:04]} 28. fxe5 {[%emt 0:00:02]} Rf8+ {[%emt 0:02:21]} 29. Kg3 {[%emt 0:00:03]} Rg6 {[%emt 0:01:26]} 30. Rh1 {[%emt 0:00:58]} Bc7 {[%emt 0:00:38]} 31. Nb5 {[%emt 0:00:25]} Bb6 {[%emt 0:00:20]} 32. Nd6 {[%emt 0:00:01]} Rb8 {[%emt 0:00:38]} 33. Nf5 {[%emt 0:00:22]} Re8 {[%emt 0:00:12]} 34. Rhe1 {[%emt 0:01:07]} h5 {[%emt 0:00:14]} 35. Kh4 {[%emt 0:00:48]} Bd8+ {[%emt 0:00:36]} 36. Kh3 {[%emt 0:00:28]} hxg4+ {[%emt 0:00:43]} 37. Kg3 {[%emt 0:00:01]} Rf8 {[%emt 0:00:35]} 38. e6 {[%emt 0:02:48]} Rxf5 {[%emt 0:01:26]} 39. e7 {[%emt 0:00:01]} Bxe7 {[%emt 0:00:54]} 40. Rxe7 {[%emt 0:00:02]} Rf7 1/2-1/2

[Event "16th Deltalift Open 2019"]
[Site "Halmstad"]
[Date "2019.05.30"]
[Round "4.14"]
[White "Nyander, Joakim"]
[Black "Berglind, Axel"]
[Result "1/2-1/2"]
[ECO "A15"]
[WhiteElo "2235"]
[BlackElo "2072"]
[Annotator "ChessBase"]
[PlyCount "153"]
[EventDate "2019.05.30"]
[EventType "swiss"]
[EventCountry "SWE"]
[SourceTitle "playchess.com"]
[Source "ChessBase"]
[SourceQuality "1"]
[TimeControl "1800+12"]

1. c4 {[%emt 0:00:00]} Nf6 {[%emt 0:00:00]} 2. g3 {[%emt 0:00:06]} g6 {[%emt 0:00:05]} 3. Bg2 {[%emt 0:00:06]} Bg7 {[%emt 0:00:02]} 4. Nc3 {[%emt 0:00:16]} O-O {[%emt 0:00:04]} 5. e4 {[%emt 0:00:20]} c5 {[%emt 0:00:11]} 6. Nge2 {[%emt 0:00:21]} Nc6 {[%emt 0:00:03]} 7. d3 {[%emt 0:00:19]} d6 {[%emt 0:00:34]} 8. O-O {[%emt 0:00:13]} Bd7 {[%emt 0:00:15]} 9. h3 {[%emt 0:00:23]} a6 {[%emt 0:00:09]} 10. Be3 {[%emt 0:00:30]} e5 {[%emt 0:03:01]} 11. f4 {[%emt 0:00:57]} Nd4 {[%emt 0:00:12]} 12. g4 {[%emt 0:02:01]} Bxg4 {[%emt 0:01:04]} 13. hxg4 {[%emt 0:02:04]} Nxg4 {[%emt 0:00:03]} 14. Bxd4 {[%emt 0:02:09]} Qh4 {[%emt 0:04:55]} 15. Rf3 {[%emt 0:00:13]} cxd4 {[%emt 0:00:07]} 16. Nd5 {[%emt 0:00:29]} exf4 {[%emt 0:00:48]} 17. Qe1 {[%emt 0:02:18]} Qh2+ {[%emt 0:00:24]} 18. Kf1 {[%emt 0:00:03]} Ne3+ {[%emt 0:00:05]} 19. Nxe3 {[%emt 0:00:36]} fxe3 {[%emt 0:00:06]} 20. Qg3 {[%emt 0:00:54]} Qxg3 {[%emt 0:00:13]} 21. Nxg3 {[%emt 0:00:23]} Be5 {[%emt 0:00:25]} 22. Bh3 {[%emt 0:01:26]} Rfb8 {[%emt 0:03:22]} 23. Rc1 {[%emt 0:01:00]} b6 {[%emt 0:00:05]} 24. Bd7 {[%emt 0:01:25]} Ra7 {[%emt 0:00:18]} 25. Bc6 {[%emt 0:00:03]} Kg7 {[%emt 0:00:25]} 26. Bd5 {[%emt 0:00:18]} h5 {[%emt 0:00:31]} 27. Ne2 {[%emt 0:00:38]} g5 {[%emt 0:00:46]} 28. Kg2 {[%emt 0:01:40]} f6 {[%emt 0:02:03]} 29. Rh3 {[%emt 0:03:04]} Rh8 {[%emt 0:00:09]} 30. Rch1 {[%emt 0:00:08]} Kg6 {[%emt 0:00:04]} 31. Be6 {[%emt 0:00:06]} h4 {[%emt 0:01:22]} 32. Kf3 {[%emt 0:00:20]} Re7 {[%emt 0:00:59]} 33. Bf5+ {[%emt 0:00:13]} Kf7 {[%emt 0:00:06]} 34. Rc1 {[%emt 0:00:24]} Rc7 {[%emt 0:00:24]} 35. Rhh1 {[%emt 0:00:13]} Rb8 {[%emt 0:00:34]} 36. b3 {[%emt 0:01:09]} a5 {[%emt 0:01:16]} 37. Rhd1 {[%emt 0:00:18]} Ke7 {[%emt 0:01:28]} 38. Ng1 {[%emt 0:00:11]} Rh8 {[%emt 0:01:34]} 39. Bh3 {[%emt 0:00:18]} Rb8 {[%emt 0:00:38]} 40. Ke2 {[%emt 0:00:12]} Rg8 {[%emt 0:00:04]} 41. Bg4 {[%emt 0:00:20]} Rh8 {[%emt 0:00:06]} 42. Rf1 {[%emt 0:00:21]} Rc5 {[%emt 0:00:47]} 43. Rf5 {[%emt 0:01:26]} Rb8 {[%emt 0:00:09]} 44. a4 {[%emt 0:02:11]} b5 {[%emt 0:01:08]} 45. axb5 {[%emt 0:02:29]} Rbxb5 {[%emt 0:00:01]} 46. Rb1 {[%emt 0:00:07]} Rb4 {[%emt 0:00:01]} 47. Kd1 {[%emt 0:00:20]} a4 {[%emt 0:00:46]} 48. Kc2 {[%emt 0:00:02]} Ra5 {[%emt 0:00:11]} 49. bxa4 {[%emt 0:00:37]} Rxb1 {[%emt 0:00:29]} 50. Kxb1 {[%emt 0:00:02]} Rxa4 {[%emt 0:00:02]} 51. Rf1 {[%emt 0:00:25]} Ra3 {[%emt 0:00:37]} 52. Rd1 {[%emt 0:00:13]} Kd8 {[%emt 0:01:13]} 53. Kb2 {[%emt 0:00:05]} Ra8 {[%emt 0:00:08]} 54. Ra1 {[%emt 0:00:17]} Rxa1 {[%emt 0:00:26]} 55. Kxa1 {[%emt 0:00:01]} Kc7 {[%emt 0:00:14]} 56. Kb2 {[%emt 0:00:03]} Kb6 {[%emt 0:00:01]} 57. Kb3 {[%emt 0:00:08]} Kc5 {[%emt 0:00:07]} 58. Ne2 {[%emt 0:00:13]} Bg3 {[%emt 0:00:41]} 59. Ka4 {[%emt 0:00:28]} Be1 {[%emt 0:00:30]} 60. Nc1 {[%emt 0:00:40]} Bc3 {[%emt 0:00:03]} 61. Ne2 {[%emt 0:00:12]} Bd2 {[%emt 0:00:39]} 62. Kb3 {[%emt 0:00:07]} Be1 {[%emt 0:00:10]} 63. Kc2 {[%emt 0:00:07]} Bd2 {[%emt 0:01:29]} 64. Kd1 {[%emt 0:00:31]} Ba5 {[%emt 0:00:18]} 65. Ng1 {[%emt 0:00:26]} Kb4 {[%emt 0:00:54]} 66. Kc2 {[%emt 0:00:18]} Kc5 {[%emt 0:00:03]} 67. Kd1 {[%emt 0:00:36]} Kb4 {[%emt 0:00:05]} 68. Nf3 {[%emt 0:00:09]} Kc5 {[%emt 0:00:16]} 69. Ke2 {[%emt 0:00:09]} Bd8 {[%emt 0:00:10]} 70. Bh3 {[%emt 0:00:12]} Bc7 {[%emt 0:00:17]} 71. Bf5 {[%emt 0:01:18]} Bb8 {[%emt 0:00:30]} 72. Ng1 {[%emt 0:00:11]} Kb4 {[%emt 0:00:17]} 73. Bh3 {[%emt 0:00:29]} Bc7 {[%emt 0:00:04]} 74. Kf3 {[%emt 0:00:18]} Kc3 {[%emt 0:00:37]} 75. Ke2 {[%emt 0:00:21]} Bb8 {[%emt 0:00:14]} 76. Nf3 {[%emt 0:00:11]} Bc7 {[%emt 0:00:10]} 77. Bg4 1/2-1/2

[Event "16th Deltalift Open 2019"]
[Site "Halmstad"]
[Date "2019.05.30"]
[Round "4.15"]
[White "Mejvik, Jacob"]
[Black "Johnson, Daniel"]
[Result "0-1"]
[ECO "B42"]
[WhiteElo "2057"]
[BlackElo "2233"]
[Annotator "ChessBase"]
[PlyCount "134"]
[EventDate "2019.05.30"]
[EventType "swiss"]
[EventCountry "SWE"]
[SourceTitle "playchess.com"]
[Source "ChessBase"]
[SourceQuality "1"]
[TimeControl "1800+12"]

1. e4 {[%emt 0:00:00]} c5 {[%emt 0:01:40]} 2. Nf3 {[%emt 0:00:00]} e6 {[%emt 0:00:02]} 3. d4 {[%emt 0:00:05]} cxd4 {[%emt 0:00:03]} 4. Nxd4 {[%emt 0:00:02]} a6 {[%emt 0:00:01]} 5. Bd3 {[%emt 0:00:08]} Qc7 {[%emt 0:00:43]} 6. O-O {[%emt 0:00:33]} d6 {[%emt 0:00:36]} 7. c4 {[%emt 0:00:21]} Nf6 {[%emt 0:00:37]} 8. Nc3 {[%emt 0:00:03]} Nbd7 {[%emt 0:00:16]} 9. Re1 {[%emt 0:00:23]} Be7 {[%emt 0:01:13]} 10. Bf1 {[%emt 0:00:52]} b6 {[%emt 0:00:29]} 11. Be3 {[%emt 0:00:09]} Bb7 {[%emt 0:00:06]} 12. f3 {[%emt 0:00:01]} Rc8 {[%emt 0:02:10]} 13. Rc1 {[%emt 0:00:53]} O-O {[%emt 0:00:56]} 14. Qd2 {[%emt 0:00:04]} Qb8 {[%emt 0:00:37]} 15. Bf2 {[%emt 0:00:39]} Rfe8 {[%emt 0:00:26]} 16. Nc2 {[%emt 0:01:05]} Bf8 {[%emt 0:01:27]} 17. Ne3 {[%emt 0:00:38]} g6 {[%emt 0:01:14]} 18. Red1 {[%emt 0:00:47]} Bc6 {[%emt 0:01:15]} 19. Bg3 {[%emt 0:01:16]} Ne5 {[%emt 0:03:15]} 20. Be2 {[%emt 0:02:21]} Nh5 {[%emt 0:01:30]} 21. Bf2 {[%emt 0:01:57]} Nf4 {[%emt 0:00:55]} 22. Bf1 {[%emt 0:00:44]} Nh3+ {[%emt 0:02:33]} 23. Kh1 {[%emt 0:00:01]} Nxf2+ {[%emt 0:00:02]} 24. Qxf2 {[%emt 0:00:01]} b5 {[%emt 0:00:21]} 25. f4 {[%emt 0:00:54]} Nd7 {[%emt 0:00:19]} 26. cxb5 {[%emt 0:00:18]} axb5 {[%emt 0:00:15]} 27. b4 {[%emt 0:00:02]} Bg7 {[%emt 0:00:58]} 28. Bd3 {[%emt 0:00:02]} Qb7 {[%emt 0:01:37]} 29. Qe2 {[%emt 0:01:07]} Rb8 {[%emt 0:02:55]} 30. Nf1 {[%emt 0:01:46]} Bh6 {[%emt 0:02:01]} 31. Qf2 {[%emt 0:01:14]} e5 {[%emt 0:01:30]} 32. f5 {[%emt 0:00:01]} Bxc1 {[%emt 0:00:34]} 33. Rxc1 {[%emt 0:00:01]} Kg7 {[%emt 0:00:48]} 34. Ne3 {[%emt 0:00:10]} Nf6 {[%emt 0:00:44]} 35. Rf1 {[%emt 0:00:49]} Rf8 {[%emt 0:01:16]} 36. Qh4 {[%emt 0:00:16]} Qb6 {[%emt 0:00:50]} 37. Ng4 {[%emt 0:03:01]} Nxg4 {[%emt 0:00:22]} 38. Qxg4 {[%emt 0:00:01]} f6 {[%emt 0:00:33]} 39. Rf3 {[%emt 0:00:17]} Qd4 {[%emt 0:00:20]} 40. Ne2 {[%emt 0:00:02]} Qa1+ {[%emt 0:00:06]} 41. Ng1 {[%emt 0:00:01]} g5 {[%emt 0:00:17]} 42. h4 {[%emt 0:00:34]} h6 {[%emt 0:00:05]} 43. Rf1 {[%emt 0:00:15]} Qd4 {[%emt 0:00:12]} 44. Bb1 {[%emt 0:00:23]} Be8 {[%emt 0:00:22]} 45. Rd1 {[%emt 0:00:40]} Qxb4 {[%emt 0:00:12]} 46. Qe2 {[%emt 0:01:02]} Rc8 {[%emt 0:00:11]} 47. Nf3 {[%emt 0:00:02]} Bh5 {[%emt 0:00:09]} 48. Qe3 {[%emt 0:00:23]} Qc3 {[%emt 0:00:18]} 49. Bd3 {[%emt 0:00:11]} Qc5 {[%emt 0:00:06]} 50. Qe2 {[%emt 0:00:08]} Qa3 {[%emt 0:00:02]} 51. Rd2 {[%emt 0:00:37]} Rc1+ {[%emt 0:00:13]} 52. Kh2 {[%emt 0:00:02]} Qc5 {[%emt 0:00:07]} 53. Kg3 {[%emt 0:00:50]} Rc3 {[%emt 0:00:28]} 54. Rb2 {[%emt 0:00:11]} b4 {[%emt 0:00:05]} 55. Rb1 {[%emt 0:00:59]} Rc1 {[%emt 0:00:17]} 56. Rb2 {[%emt 0:00:26]} Rc3 {[%emt 0:00:12]} 57. Rb1 {[%emt 0:00:01]} g4 {[%emt 0:00:01]} 58. Ne1 {[%emt 0:00:03]} Qd4 {[%emt 0:00:10]} 59. Rd1 {[%emt 0:00:15]} d5 {[%emt 0:00:22]} 60. Nc2 {[%emt 0:00:08]} Qc5 {[%emt 0:00:11]} 61. exd5 {[%emt 0:00:03]} Qxd5 {[%emt 0:00:16]} 62. Nxb4 {[%emt 0:00:18]} Qd4 {[%emt 0:00:06]} 63. Qf1 {[%emt 0:00:53]} Qxb4 {[%emt 0:00:09]} 64. Rd2 {[%emt 0:00:22]} Qf4+ {[%emt 0:00:21]} 65. Qxf4 {[%emt 0:00:01]} exf4+ {[%emt 0:00:01]} 66. Kxf4 {[%emt 0:00:02]} Rd8 {[%emt 0:00:01]} 67. Ke3 {[%emt 0:00:03]} Bf7 {[%emt 0:00:10]} 0-1

[Event "16th Deltalift Open 2019"]
[Site "Halmstad"]
[Date "2019.05.30"]
[Round "4.16"]
[White "Wernberg, Hugo"]
[Black "Sjoberg, Isak"]
[Result "0-1"]
[ECO "B94"]
[WhiteElo "2017"]
[BlackElo "2208"]
[Annotator "ChessBase"]
[PlyCount "74"]
[EventDate "2019.05.30"]
[EventType "swiss"]
[EventCountry "SWE"]
[SourceTitle "playchess.com"]
[Source "ChessBase"]
[SourceQuality "1"]
[TimeControl "1800+12"]

1. e4 {[%emt 0:00:00]} c5 {[%emt 0:00:00]} 2. Nf3 {[%emt 0:00:00]} d6 {[%emt 0:00:00]} 3. d4 {[%emt 0:00:00]} cxd4 {[%emt 0:00:00]} 4. Nxd4 {[%emt 0:00:00]} Nf6 {[%emt 0:00:00]} 5. Nc3 {[%emt 0:00:01]} a6 {[%emt 0:00:00]} 6. Bg5 {[%emt 0:00:02]} Nbd7 {[%emt 0:00:18]} 7. f4 {[%emt 0:00:03]} Qc7 {[%emt 0:00:04]} 8. Qe2 {[%emt 0:00:02]} e5 {[%emt 0:00:18]} 9. Nf3 {[%emt 0:01:24]} h6 {[%emt 0:01:40]} 10. Bxf6 {[%emt 0:00:22]} Nxf6 {[%emt 0:00:05]} 11. O-O-O {[%emt 0:01:02]} Be7 {[%emt 0:00:50]} 12. Nd5 {[%emt 0:04:04]} Nxd5 {[%emt 0:00:01]} 13. exd5 {[%emt 0:00:03]} Bf5 {[%emt 0:03:52]} 14. fxe5 {[%emt 0:01:53]} dxe5 {[%emt 0:00:03]} 15. Qc4 {[%emt 0:02:26]} Qd6 {[%emt 0:02:00]} 16. Qa4+ {[%emt 0:01:45]} Bd7 {[%emt 0:00:01]} 17. Qe4 {[%emt 0:00:09]} Bf6 {[%emt 0:01:37]} 18. Bd3 {[%emt 0:02:25]} g6 {[%emt 0:00:04]} 19. Rhe1 {[%emt 0:02:04]} O-O {[%emt 0:00:31]} 20. Nxe5 {[%emt 0:02:26]} Rae8 {[%emt 0:00:43]} 21. Nxf7 {[%emt 0:03:00]} Bg5+ {[%emt 0:04:38]} 22. Kb1 {[%emt 0:00:48]} Kxf7 {[%emt 0:00:50]} 23. Qd4 {[%emt 0:00:42]} Bf6 {[%emt 0:00:28]} 24. Qc4 {[%emt 0:01:38]} Bb5 {[%emt 0:01:36]} 25. Bxg6+ {[%emt 0:01:14]} Kxg6 {[%emt 0:00:31]} 26. Qg4+ {[%emt 0:00:03]} Kh7 {[%emt 0:01:02]} 27. Qf5+ {[%emt 0:00:07]} Kh8 {[%emt 0:00:28]} 28. Qg6 {[%emt 0:00:17]} Be5 {[%emt 0:00:27]} 29. Qh5 {[%emt 0:00:28]} Bg7 {[%emt 0:00:11]} 30. Re6 {[%emt 0:00:25]} Rxe6 {[%emt 0:00:20]} 31. dxe6 {[%emt 0:00:03]} Qxd1+ {[%emt 0:00:48]} 32. Qxd1 {[%emt 0:00:10]} Rf1 {[%emt 0:00:01]} 33. Qxf1 {[%emt 0:00:13]} Bxf1 {[%emt 0:00:04]} 34. e7 {[%emt 0:00:17]} Bb5 {[%emt 0:00:02]} 35. c4 {[%emt 0:00:05]} Be8 {[%emt 0:00:03]} 36. g4 {[%emt 0:00:25]} Bf6 {[%emt 0:00:00]} 37. h4 {[%emt 0:00:06]} Bxh4 {[%emt 0:00:07]} 0-1

[Event "16th Deltalift Open 2019"]
[Site "Halmstad"]
[Date "2019.05.30"]
[Round "4.17"]
[White "Carlsson, Ludvig"]
[Black "Carlstrom, Niklas"]
[Result "1/2-1/2"]
[ECO "A01"]
[WhiteElo "2208"]
[BlackElo "2065"]
[Annotator "ChessBase"]
[PlyCount "51"]
[EventDate "2019.05.30"]
[EventType "swiss"]
[EventCountry "SWE"]
[SourceTitle "playchess.com"]
[Source "ChessBase"]
[SourceQuality "1"]
[TimeControl "1800+12"]

1. b3 {[%emt 0:00:00]} e5 {[%emt 0:00:39]} 2. Bb2 {[%emt 0:00:03]} Nc6 {[%emt 0:00:04]} 3. e3 {[%emt 0:00:14]} a6 {[%emt 0:01:07]} 4. c4 {[%emt 0:00:27]} Nf6 {[%emt 0:00:24]} 5. a3 {[%emt 0:00:04]} g6 {[%emt 0:00:29]} 6. d3 {[%emt 0:00:37]} Bg7 {[%emt 0:00:14]} 7. Nd2 {[%emt 0:00:03]} O-O {[%emt 0:00:09]} 8. Ngf3 {[%emt 0:00:06]} d6 {[%emt 0:00:44]} 9. Be2 {[%emt 0:00:05]} Qe7 {[%emt 0:00:53]} 10. Qc2 {[%emt 0:01:08]} Bd7 {[%emt 0:00:55]} 11. O-O {[%emt 0:01:03]} Ne8 {[%emt 0:00:45]} 12. Bc3 {[%emt 0:00:21]} f5 {[%emt 0:00:15]} 13. b4 {[%emt 0:00:08]} g5 {[%emt 0:01:58]} 14. Rfc1 {[%emt 0:01:29]} g4 {[%emt 0:03:22]} 15. Ne1 {[%emt 0:00:03]} Nf6 {[%emt 0:00:25]} 16. a4 {[%emt 0:00:50]} f4 {[%emt 0:00:53]} 17. b5 {[%emt 0:00:02]} fxe3 {[%emt 0:01:45]} 18. fxe3 {[%emt 0:00:09]} Nd8 {[%emt 0:00:12]} 19. g3 {[%emt 0:03:53]} Bh6 {[%emt 0:00:33]} 20. Ng2 {[%emt 0:00:05]} Ne6 {[%emt 0:00:21]} 21. Qb2 {[%emt 0:01:16]} Ng5 {[%emt 0:00:22]} 22. c5 {[%emt 0:00:03]} Nh3+ {[%emt 0:00:30]} 23. Kh1 {[%emt 0:00:11]} Nd5 {[%emt 0:01:54]} 24. Nc4 {[%emt 0:02:44]} Nf2+ {[%emt 0:00:58]} 25. Kg1 {[%emt 0:00:03]} Nh3+ {[%emt 0:00:03]} 26. Kh1 1/2-1/2

[Event "16th Deltalift Open 2019"]
[Site "Halmstad"]
[Date "2019.05.30"]
[Round "4.18"]
[White "Wahlstrom, Lennart"]
[Black "Mattsson, Michael"]
[Result "1-0"]
[ECO "C47"]
[WhiteElo "2196"]
[BlackElo "2063"]
[Annotator "ChessBase"]
[PlyCount "88"]
[EventDate "2019.05.30"]
[EventType "swiss"]
[EventCountry "SWE"]
[SourceTitle "playchess.com"]
[Source "ChessBase"]
[SourceQuality "1"]
[TimeControl "1800+12"]

1. e4 {[%emt 0:00:00]} e5 {[%emt 0:00:00]} 2. Nf3 {[%emt 0:00:00]} Nc6 {[%emt 0:00:00]} 3. Nc3 {[%emt 0:00:00]} Nf6 {[%emt 0:00:04]} 4. d4 {[%emt 0:00:00]} exd4 {[%emt 0:00:03]} 5. Nxd4 {[%emt 0:00:01]} Bb4 {[%emt 0:00:08]} 6. Nxc6 {[%emt 0:00:03]} bxc6 {[%emt 0:00:05]} 7. Bd3 {[%emt 0:00:03]} d5 {[%emt 0:00:05]} 8. exd5 {[%emt 0:00:03]} cxd5 {[%emt 0:00:03]} 9. O-O {[%emt 0:00:06]} O-O {[%emt 0:00:05]} 10. Bg5 {[%emt 0:00:04]} c6 {[%emt 0:00:03]} 11. Qf3 {[%emt 0:00:05]} h6 {[%emt 0:00:02]} 12. Bxf6 {[%emt 0:00:04]} Qxf6 {[%emt 0:00:05]} 13. Qxf6 {[%emt 0:00:02]} gxf6 {[%emt 0:00:03]} 14. Ne2 {[%emt 0:00:24]} Bd6 {[%emt 0:01:12]} 15. Rae1 {[%emt 0:01:21]} Rb8 {[%emt 0:00:38]} 16. b3 {[%emt 0:00:06]} Rb4 {[%emt 0:00:10]} 17. c3 {[%emt 0:03:10]} Rh4 {[%emt 0:01:08]} 18. Ng3 {[%emt 0:07:29]} Kh8 {[%emt 0:04:03]} 19. h3 {[%emt 0:14:16]} Be5 {[%emt 0:01:34]} 20. c4 {[%emt 0:00:27]} Rg8 {[%emt 0:02:34]} 21. cxd5 {[%emt 0:01:45]} cxd5 {[%emt 0:04:12]} 22. Re3 {[%emt 0:02:48]} d4 {[%emt 0:03:04]} 23. Re4 {[%emt 0:00:36]} Rxe4 {[%emt 0:02:38]} 24. Bxe4 {[%emt 0:00:04]} Ba6 {[%emt 0:04:44]} 25. Rd1 {[%emt 0:00:07]} Bxg3 {[%emt 0:02:21]} 26. fxg3 {[%emt 0:00:02]} Rxg3 {[%emt 0:00:09]} 27. Rxd4 {[%emt 0:00:09]} Re3 {[%emt 0:00:51]} 28. Bf3 {[%emt 0:00:14]} Rd3 {[%emt 0:00:55]} 29. Rxd3 {[%emt 0:00:03]} Bxd3 {[%emt 0:00:01]} 30. Kf2 {[%emt 0:00:04]} a5 {[%emt 0:00:21]} 31. Ke3 {[%emt 0:00:11]} Bb1 {[%emt 0:01:08]} 32. a3 {[%emt 0:00:02]} Kg8 {[%emt 0:00:26]} 33. b4 {[%emt 0:00:05]} axb4 {[%emt 0:00:02]} 34. axb4 {[%emt 0:00:02]} Kf8 {[%emt 0:00:01]} 35. Kd4 {[%emt 0:00:23]} Ke7 {[%emt 0:00:05]} 36. Bd5 {[%emt 0:00:13]} f5 {[%emt 0:00:22]} 37. Ke5 {[%emt 0:00:19]} f6+ {[%emt 0:00:02]} 38. Kf4 {[%emt 0:00:02]} Kd6 {[%emt 0:00:16]} 39. Bg8 {[%emt 0:00:02]} h5 {[%emt 0:00:40]} 40. Bh7 {[%emt 0:00:09]} Ke6 {[%emt 0:00:27]} 41. b5 {[%emt 0:00:08]} Be4 {[%emt 0:02:27]} 42. g3 {[%emt 0:00:03]} h4 {[%emt 0:00:30]} 43. gxh4 {[%emt 0:00:26]} Kd6 {[%emt 0:00:18]} 44. Bxf5 {[%emt 0:00:05]} Kd5 {Kxe4+} 1-0

[Event "16th Deltalift Open 2019"]
[Site "Halmstad"]
[Date "2019.05.30"]
[Round "4.20"]
[White "Stray, Gunnar"]
[Black "Naslund, Mikael"]
[Result "1-0"]
[ECO "D04"]
[WhiteElo "2005"]
[BlackElo "2177"]
[Annotator "ChessBase"]
[PlyCount "59"]
[EventDate "2019.05.30"]
[EventType "swiss"]
[EventCountry "SWE"]
[SourceTitle "playchess.com"]
[Source "ChessBase"]
[SourceQuality "1"]
[TimeControl "1800+12"]

1. d4 {[%emt 0:00:00]} Nf6 {[%emt 0:00:00]} 2. Nf3 {[%emt 0:00:00]} d5 {[%emt 0:00:00]} 3. e3 {[%emt 0:00:00]} Bg4 {[%emt 0:00:33]} 4. h3 {[%emt 0:00:00]} Bh5 {[%emt 0:00:03]} 5. g4 {[%emt 0:00:00]} Bg6 {[%emt 0:00:02]} 6. Ne5 {[%emt 0:00:01]} Nbd7 {[%emt 0:00:54]} 7. h4 {[%emt 0:00:02]} Nxe5 {[%emt 0:06:15]} 8. dxe5 {[%emt 0:00:01]} Nxg4 {[%emt 0:00:17]} 9. Qxg4 {[%emt 0:00:09]} Bxc2 {[%emt 0:00:02]} 10. Nc3 {[%emt 0:01:05]} e6 {[%emt 0:00:45]} 11. Bd2 {[%emt 0:00:18]} c6 {[%emt 0:01:01]} 12. Rc1 {[%emt 0:01:05]} Bf5 {[%emt 0:00:17]} 13. Qf4 {[%emt 0:01:04]} Be7 {[%emt 0:01:33]} 14. e4 {[%emt 0:00:14]} dxe4 {[%emt 0:01:01]} 15. Nxe4 {[%emt 0:01:04]} Qd5 {[%emt 0:03:27]} 16. Bg2 {[%emt 0:00:39]} Qb5 {[%emt 0:00:38]} 17. Nd6+ {[%emt 0:02:08]} Bxd6 {[%emt 0:00:07]} 18. exd6 {[%emt 0:00:02]} O-O-O {[%emt 0:00:47]} 19. Bc3 {[%emt 0:01:13]} f6 {[%emt 0:00:03]} 20. Rd1 {[%emt 0:01:08]} Bg6 {[%emt 0:02:37]} 21. Bf1 {[%emt 0:01:03]} Qc5 {[%emt 0:00:33]} 22. Qc4 {[%emt 0:01:12]} Qxc4 {[%emt 0:03:18]} 23. Bxc4 {[%emt 0:00:03]} Rhe8 {[%emt 0:00:03]} 24. h5 {[%emt 0:00:45]} Be4 {[%emt 0:01:08]} 25. Rg1 {[%emt 0:00:25]} Rd7 {[%emt 0:02:29]} 26. h6 {[%emt 0:00:29]} gxh6 {[%emt 0:00:08]} 27. Bxf6 {[%emt 0:00:13]} Bd5 {[%emt 0:00:02]} 28. Be2 {[%emt 0:02:54]} Rxd6 {[%emt 0:00:45]} 29. Bh5 {[%emt 0:00:30]} Rf8 {[%emt 0:00:07]} 30. Be7 1-0